[Event "2nd FIDE WCC Rapid G12"]
[Site "Minsk"]
[Date "2018.06.23"]
[Round "9"]
[White "Blokhin, Sofia"]
[Black "Nguyen, Le Cam Hien"]
[Result "1-0"]
[ECO "B01"]
[WhiteElo "1500"]
[BlackElo "1614"]
[Annotator "NA RC"]
[PlyCount "187"]
[EventDate "2018.06.22"]
[EventType "rapid"]
[EventCountry "BLR"]
[SourceTitle "playchess.com"]
[Source "ChessBase"]
[SourceQuality "1"]
[TimeControl "600+5"]

1. e4 {[%emt 0:00:00]} d5 {[%emt 0:00:01]} 2. exd5 {[%emt 0:00:00]} Qxd5 {[%emt 0:00:03]} 3. Nc3 {[%emt 0:00:01]} Qa5 {[%emt 0:00:02]} 4. Nf3 {[%emt 0:00:03]} Nf6 {[%emt 0:00:02]} 5. d4 {[%emt 0:00:04]} c6 {[%emt 0:00:02]} 6. Bc4 {[%emt 0:00:14]} Bf5 {[%emt 0:00:10]} 7. O-O {[%emt 0:00:11]} e6 {[%emt 0:00:02]} 8. Bd2 {[%emt 0:00:21]} Qc7 {[%emt 0:00:04]} 9. h3 {[%emt 0:00:19]} Be7 {[%emt 0:00:04]} 10. Re1 {[%emt 0:00:14]} O-O {[%emt 0:00:04]} 11. Nh4 {[%emt 0:00:31]} Bg6 {[%emt 0:00:03]} 12. Nxg6 {[%emt 0:00:05]} hxg6 {[%emt 0:00:04]} 13. Qf3 {[%emt 0:00:38]} Nd5 {[%emt 0:00:15]} 14. Ne4 {[%emt 0:00:53]} Nd7 {[%emt 0:00:20]} 15. Bd3 {[%emt 0:00:40]} c5 {[%emt 0:00:53]} 16. c4 {[%emt 0:00:27]} N5f6 {[%emt 0:00:22]} 17. Bf4 {[%emt 0:00:11]} Qb6 {[%emt 0:00:56]} 18. dxc5 {[%emt 0:00:35]} Nxc5 {[%emt 0:01:58]} 19. Be3 {[%emt 0:00:49]} Qc7 {[%emt 0:00:20]} 20. Bxc5 {[%emt 0:00:49]} Bxc5 {[%emt 0:00:41]} 21. Nxf6+ {[%emt 0:00:07]} gxf6 {[%emt 0:00:04]} 22. Qxf6 {[%emt 0:00:06]} Qb6 {[%emt 0:00:22]} 23. Re4 {[%emt 0:00:25]} e5 {[%emt 0:00:51]} 24. Qxb6 {[%emt 0:01:39]} Bxb6 {[%emt 0:00:08]} 25. Rxe5 {[%emt 0:00:04]} Rad8 {[%emt 0:00:14]} 26. Rd5 {[%emt 0:00:21]} Rxd5 {[%emt 0:00:28]} 27. cxd5 {[%emt 0:00:01]} Rd8 {[%emt 0:00:30]} 28. Bc4 {[%emt 0:00:02]} Bc5 {[%emt 0:00:13]} 29. a3 {[%emt 0:00:14]} Bd6 {[%emt 0:00:05]} 30. b3 {[%emt 0:00:19]} Re8 {[%emt 0:00:14]} 31. g3 {[%emt 0:00:13]} Kg7 {[%emt 0:00:12]} 32. Kg2 {[%emt 0:00:04]} Kf6 {[%emt 0:00:36]} 33. a4 {[%emt 0:00:03]} Re5 {[%emt 0:00:16]} 34. Rd1 {[%emt 0:00:26]} Re4 {[%emt 0:00:31]} 35. Rd3 {[%emt 0:00:13]} Ke5 {[%emt 0:00:31]} 36. Rf3 {[%emt 0:00:20]} f5 {[%emt 0:00:12]} 37. Rd3 {[%emt 0:00:04]} Kf6 {[%emt 0:00:22]} 38. Kf3 {[%emt 0:00:11]} Ke5 {[%emt 0:00:19]} 39. h4 {[%emt 0:00:21]} Re1 {[%emt 0:00:11]} 40. Re3+ {[%emt 0:00:08]} Rxe3+ {[%emt 0:00:04]} 41. Kxe3 {[%emt 0:00:11]} Bc5+ {[%emt 0:00:02]} 42. Kf3 {[%emt 0:00:05]} a5 {[%emt 0:00:06]} 43. Ke2 {[%emt 0:00:17]} b6 {[%emt 0:00:04]} 44. Kf3 {[%emt 0:00:14]} Bd6 {[%emt 0:00:04]} 45. g4 {[%emt 0:00:05]} fxg4+ {[%emt 0:00:03]} 46. Kxg4 {[%emt 0:00:01]} Kf6 {[%emt 0:00:08]} 47. f4 {[%emt 0:00:03]} Bc7 {[%emt 0:00:06]} 48. Bb5 {[%emt 0:00:06]} Bd6 {[%emt 0:00:05]} 49. Bd7 {[%emt 0:00:04]} Bf8 {[%emt 0:00:10]} 50. Be6 {[%emt 0:00:11]} Bd6 {[%emt 0:00:05]} 51. f5 {[%emt 0:00:05]} gxf5+ {[%emt 0:00:26]} 52. Bxf5 {[%emt 0:00:01]} Bf8 {[%emt 0:00:03]} 53. Be6 {[%emt 0:00:09]} Bh6 {[%emt 0:00:09]} 54. Bg8 {[%emt 0:00:04]} Bf8 {[%emt 0:00:03]} 55. h5 {[%emt 0:00:03]} Kg7 {[%emt 0:00:07]} 56. Be6 {[%emt 0:00:04]} Kf6 {[%emt 0:00:01]} 57. Bf5 {[%emt 0:00:07]} Ke5 {[%emt 0:00:06]} 58. Kg5 {[%emt 0:00:12]} Kxd5 {[%emt 0:00:01]} 59. Kg6 {[%emt 0:00:03]} Kc5 {[%emt 0:00:09]} 60. h6 {[%emt 0:00:02]} Bd6 {[%emt 0:00:01]} 61. h7 {[%emt 0:00:09]} Be5 {[%emt 0:00:01]} 62. Kf7 {[%emt 0:00:04]} b5 {[%emt 0:00:03]} 63. Kg8 {[%emt 0:00:07]} Kb4 {[%emt 0:00:18]} 64. Bc2 {[%emt 0:00:09]} bxa4 {[%emt 0:00:05]} 65. bxa4 {[%emt 0:00:02]} Kc3 {[%emt 0:00:02]} 66. Bf5 {[%emt 0:00:04]} Kb4 {[%emt 0:00:03]} 67. Bd7 {[%emt 0:00:02]} Kc5 {[%emt 0:00:06]} 68. h8=Q {[%emt 0:00:02]} Bxh8 {[%emt 0:00:04]} 69. Kxh8 {[%emt 0:00:01]} Kd6 {[%emt 0:00:03]} 70. Bb5 {[%emt 0:00:02]} Ke7 {[%emt 0:00:05]} 71. Kh7 {[%emt 0:00:05]} Kf7 {[%emt 0:00:02]} 72. Bc4+ {[%emt 0:00:04]} Kf6 {[%emt 0:00:04]} 73. Kg8 {[%emt 0:00:03]} Ke7 {[%emt 0:00:01]} 74. Kg7 {[%emt 0:00:02]} Kd6 {[%emt 0:00:01]} 75. Kf6 {[%emt 0:00:02]} Kc5 {[%emt 0:00:02]} 76. Bb5 {[%emt 0:00:06]} Kd6 {[%emt 0:00:02]} 77. Be8 {[%emt 0:00:05]} Kc5 {[%emt 0:00:06]} 78. Ke5 {[%emt 0:00:02]} Kb6 {[%emt 0:00:04]} 79. Kd5 {[%emt 0:00:04]} Kc7 {[%emt 0:00:11]} 80. Kc5 {[%emt 0:00:03]} Kd8 {[%emt 0:00:06]} 81. Bc6 {[%emt 0:00:16]} Kc7 {[%emt 0:00:02]} 82. Kb5 {[%emt 0:00:03]} Kb8 {[%emt 0:00:02]} 83. Kxa5 {[%emt 0:00:04]} Ka7 {[%emt 0:00:00]} 84. Kb5 {[%emt 0:00:04]} Kb8 {[%emt 0:00:02]} 85. a5 {[%emt 0:00:01]} Ka7 {[%emt 0:00:01]} 86. Bd5 {[%emt 0:00:04]} Kb8 {[%emt 0:00:01]} 87. Kb6 {[%emt 0:00:02]} Kc8 {[%emt 0:00:01]} 88. a6 {[%emt 0:00:01]} Kd7 {[%emt 0:00:01]} 89. a7 {[%emt 0:00:03]} Kd8 {[%emt 0:00:03]} 90. a8=Q+ {[%emt 0:00:02]} Kd7 {[%emt 0:00:02]} 91. Qc6+ {[%emt 0:00:02]} Ke7 {[%emt 0:00:01]} 92. Qe6+ {[%emt 0:00:02]} Kd8 {[%emt 0:00:05]} 93. Qf7 {[%emt 0:00:09]} Kc8 {[%emt 0:00:02]} 94. Qc7# {[%emt 0:00:01]} 1-0

[Event "2nd FIDE WCC Rapid G12"]
[Site "Minsk"]
[Date "2018.06.23"]
[Round "9"]
[White "Mikheeva, Galina"]
[Black "Shaban, Aliaksandra"]
[Result "0-1"]
[ECO "B04"]
[WhiteElo "1492"]
[BlackElo "1425"]
[Annotator "NA RC"]
[PlyCount "86"]
[EventDate "2018.06.22"]
[EventType "rapid"]
[EventCountry "BLR"]
[SourceTitle "playchess.com"]
[Source "ChessBase"]
[SourceQuality "1"]
[TimeControl "600+5"]

1. e4 {[%emt 0:00:00]} Nf6 {[%emt 0:00:01]} 2. e5 {[%emt 0:00:00]} Nd5 {[%emt 0:00:01]} 3. d4 {[%emt 0:00:00]} d6 {[%emt 0:00:00]} 4. Nf3 {[%emt 0:00:02]} g6 {[%emt 0:00:01]} 5. Bc4 {[%emt 0:00:09]} Nb6 {[%emt 0:00:01]} 6. Bb3 {[%emt 0:00:02]} Nc6 {[%emt 0:00:03]} 7. exd6 {[%emt 0:00:28]} cxd6 {[%emt 0:00:02]} 8. O-O {[%emt 0:00:10]} Bg7 {[%emt 0:00:00]} 9. h3 {[%emt 0:00:06]} O-O {[%emt 0:00:02]} 10. c3 {[%emt 0:00:07]} d5 {[%emt 0:00:14]} 11. Bf4 {[%emt 0:00:10]} Bf5 {[%emt 0:00:04]} 12. Re1 {[%emt 0:00:50]} Rc8 {[%emt 0:00:20]} 13. Nbd2 {[%emt 0:00:29]} a5 {[%emt 0:00:14]} 14. Nf1 {[%emt 0:00:16]} Kh8 {[%emt 0:00:24]} 15. Ng3 {[%emt 0:00:15]} Qd7 {[%emt 0:00:29]} 16. Nxf5 {[%emt 0:00:22]} Qxf5 {[%emt 0:00:02]} 17. Bh2 {[%emt 0:00:21]} Qd7 {[%emt 0:00:32]} 18. Ne5 {[%emt 0:00:17]} Nxe5 {[%emt 0:00:04]} 19. Bxe5 {[%emt 0:00:04]} f6 {[%emt 0:00:14]} 20. Bg3 {[%emt 0:00:12]} a4 21. Bc2 {[%emt 0:00:08]} Nc4 {[%emt 0:00:08]} 22. Bxa4 {[%emt 0:00:50]} b5 {[%emt 0:00:07]} 23. Bb3 {[%emt 0:00:05]} Nxb2 {[%emt 0:00:07]} 24. Qe2 {[%emt 0:00:20]} Na4 {[%emt 0:00:10]} 25. Bxa4 {[%emt 0:00:30]} bxa4 {[%emt 0:00:02]} 26. Qxe7 {[%emt 0:01:38]} Qxe7 {[%emt 0:01:13]} 27. Rxe7 {[%emt 0:00:02]} Rxc3 {[%emt 0:00:01]} 28. Rd7 {[%emt 0:00:01]} Rd3 {[%emt 0:00:08]} 29. Rxd5 {[%emt 0:00:02]} f5 {[%emt 0:00:04]} 30. Rb1 {[%emt 0:00:32]} f4 {[%emt 0:00:19]} 31. Bh4 {[%emt 0:00:18]} h6 {[%emt 0:01:01]} 32. Be7 {[%emt 0:00:29]} Re8 {[%emt 0:00:11]} 33. Bc5 {[%emt 0:00:08]} Rd2 {[%emt 0:00:43]} 34. a3 {[%emt 0:00:18]} Ree2 {[%emt 0:00:25]} 35. Rd8+ {[%emt 0:00:01]} Kh7 {[%emt 0:00:04]} 36. d5 {[%emt 0:00:02]} Rc2 {[%emt 0:00:15]} 37. Bb6 {[%emt 0:00:38]} Rcd2 {[%emt 0:00:58]} 38. d6 {[%emt 0:00:11]} Re5 {[%emt 0:00:29]} 39. Rb4 {[%emt 0:00:42]} Re1+ {[%emt 0:00:12]} 40. Kh2 {[%emt 0:00:04]} g5 {[%emt 0:00:33]} 41. Rxa4 {[%emt 0:00:06]} Rdd1 {[%emt 0:00:05]} 42. g3 {[%emt 0:00:10]} f3 {[%emt 0:00:06]} 43. g4 {[%emt 0:00:20]} Be5+ {[%emt 0:00:03]} 0-1

[Event "2nd FIDE WCC Rapid G12"]
[Site "Minsk"]
[Date "2018.06.23"]
[Round "9"]
[White "Khabibullaeva, Mokhinur"]
[Black "Alekseenko, Mariya"]
[Result "0-1"]
[ECO "A43"]
[WhiteElo "1462"]
[BlackElo "1763"]
[Annotator "NA RC"]
[PlyCount "118"]
[EventDate "2018.06.22"]
[EventType "rapid"]
[EventCountry "BLR"]
[SourceTitle "playchess.com"]
[Source "ChessBase"]
[SourceQuality "1"]
[TimeControl "600+5"]

1. d4 {[%emt 0:00:00]} Nf6 {[%emt 0:00:01]} 2. Nf3 {[%emt 0:00:00]} c5 {[%emt 0:00:01]} 3. d5 {[%emt 0:00:00]} d6 {[%emt 0:00:01]} 4. Nc3 {[%emt 0:00:00]} Nbd7 {[%emt 0:00:02]} 5. e4 {[%emt 0:00:01]} e5 {[%emt 0:00:01]} 6. g3 {[%emt 0:00:02]} g6 {[%emt 0:00:02]} 7. Bg2 {[%emt 0:00:02]} a6 {[%emt 0:00:01]} 8. a4 {[%emt 0:00:00]} Bg7 {[%emt 0:00:02]} 9. O-O {[%emt 0:00:04]} O-O {[%emt 0:00:02]} 10. h3 {[%emt 0:00:02]} Ne8 {[%emt 0:00:01]} 11. Ne1 {[%emt 0:00:22]} f5 {[%emt 0:00:07]} 12. f4 {[%emt 0:00:05]} exf4 {[%emt 0:00:08]} 13. Bxf4 {[%emt 0:00:05]} Ne5 {[%emt 0:00:01]} 14. Nd3 {[%emt 0:00:23]} Qe7 {[%emt 0:00:30]} 15. Nxe5 {[%emt 0:00:10]} Bxe5 {[%emt 0:00:02]} 16. Bxe5 {[%emt 0:00:09]} Qxe5 {[%emt 0:00:01]} 17. Qf3 {[%emt 0:00:36]} Ng7 {[%emt 0:00:13]} 18. Rae1 {[%emt 0:00:05]} Bd7 {[%emt 0:00:21]} 19. Qd3 {[%emt 0:00:58]} f4 {[%emt 0:01:46]} 20. gxf4 {[%emt 0:01:52]} Rxf4 {[%emt 0:00:01]} 21. Rxf4 {[%emt 0:00:04]} Qxf4 {[%emt 0:00:01]} 22. Rf1 {[%emt 0:00:02]} Qe5 {[%emt 0:00:11]} 23. Qf3 {[%emt 0:00:03]} Qe7 {[%emt 0:00:15]} 24. b3 {[%emt 0:00:41]} Rf8 {[%emt 0:00:24]} 25. Qxf8+ Qxf8 {[%emt 0:00:01]} 26. Rxf8+ {[%emt 0:00:09]} Kxf8 {[%emt 0:00:01]} 27. Kf2 {[%emt 0:00:03]} Nh5 {[%emt 0:00:02]} 28. Kf3 {[%emt 0:00:07]} Nf6 {[%emt 0:00:12]} 29. Nd1 {[%emt 0:00:26]} b5 {[%emt 0:00:13]} 30. axb5 {[%emt 0:00:07]} axb5 {[%emt 0:00:01]} 31. Ne3 {[%emt 0:00:14]} Ke7 {[%emt 0:00:22]} 32. Bf1 {[%emt 0:00:27]} Ng8 {[%emt 0:00:39]} 33. Kf4 {[%emt 0:00:30]} Kf6 {[%emt 0:00:01]} 34. Ng4+ {[%emt 0:00:13]} Bxg4 {[%emt 0:00:01]} 35. hxg4 {[%emt 0:00:03]} g5+ {[%emt 0:00:03]} 36. Ke3 {[%emt 0:00:09]} b4 {[%emt 0:00:01]} 37. Be2 {[%emt 0:01:16]} Ke5 {[%emt 0:00:01]} 38. Bd1 {[%emt 0:00:24]} Nf6 {[%emt 0:00:06]} 39. Bf3 {[%emt 0:02:16]} h6 {[%emt 0:00:01]} 40. Kd3 {[%emt 0:00:31]} Kf4 {[%emt 0:00:01]} 41. Bh1 {[%emt 0:00:14]} Nxg4 {[%emt 0:00:01]} 42. Bg2 {[%emt 0:00:07]} Ke5 {[%emt 0:00:06]} 43. Bf3 {[%emt 0:00:05]} Nf6 {[%emt 0:00:01]} 44. Bg2 {[%emt 0:00:18]} g4 {[%emt 0:00:02]} 45. Bh1 {[%emt 0:00:02]} h5 {[%emt 0:00:01]} 46. Bg2 {[%emt 0:00:01]} h4 {[%emt 0:00:01]} 47. Bf1 {[%emt 0:00:02]} h3 {[%emt 0:00:02]} 48. Be2 {[%emt 0:00:00]} g3 {[%emt 0:00:04]} 49. c3 {[%emt 0:00:03]} bxc3 {[%emt 0:00:06]} 50. Kxc3 {[%emt 0:00:01]} g2 {[%emt 0:00:01]} 51. b4 {[%emt 0:00:02]} cxb4+ {[%emt 0:00:01]} 52. Kxb4 {[%emt 0:00:01]} g1=Q 53. Kb5 Nxe4 {[%emt 0:00:05]} 54. Bf1 {[%emt 0:00:04]} Qc5+ {[%emt 0:00:03]} 55. Ka6 {[%emt 0:00:00]} Nc3 {[%emt 0:00:06]} 56. Bb5 {[%emt 0:00:06]} Qxb5+ {[%emt 0:00:01]} 57. Ka7 {[%emt 0:00:00]} Kxd5 {[%emt 0:00:05]} 58. Ka8 {[%emt 0:00:03]} Kc6 59. Ka7 {[%emt 0:00:02]} Qb7# {[%emt 0:00:02]} 0-1